fUSD/lending_fUSD_20260621
["ID","MTS","AMOUNT","RATE_DAILY","PERIOD"]
[425943321,1782041457000,-500.0,0.00027671,2]
[425943326,1782041457000,-500.0,0.00027671,2]
[425943329,1782041457000,-500.0,0.00027671,2]
[425943331,1782041457000,-500.0,0.00027671,2]
[425943327,1782041457000,-500.0,0.00027671,2]
[425943328,1782041457000,-500.0,0.00027671,2]
[425943330,1782041457000,-500.0,0.00027671,2]
[425943333,1782041457000,-500.0,0.00027671,2]
[425943332,1782041457000,-500.0,0.00027671,2]
[425943334,1782041457000,-500.0,0.00027671,2]
[425943336,1782041457000,-500.0,0.00027671,2]
[425943338,1782041457000,-142154.504176,0.00027671,2]
[425943337,1782041457000,-500.0,0.00027671,2]
[425943335,1782041457000,-471.34774181,0.00027671,2]
[425943342,1782041457000,-500.0,0.00027671,2]
[425943344,1782041457000,-500.0,0.00027671,2]
[425943343,1782041457000,-500.0,0.00027671,2]
[425943347,1782041457000,-500.0,0.00027671,2]
[425943350,1782041457000,-500.0,0.00027671,2]
[425943351,1782041457000,-486.50312307,0.00027671,2]
[425943339,1782041457000,-507.29,0.00027671,2]
[425943349,1782041457000,-634.66,0.00027671,2]
[425943341,1782041457000,-500.0,0.00027671,2]
[425943348,1782041457000,-302.52690969,0.00027671,2]
[425943380,1782041457000,-500.0,0.00027671,2]
[425943386,1782041457000,-500.0,0.00027671,2]
[425943375,1782041457000,-500.0,0.00027671,2]
[425943410,1782041457000,-500.0,0.00027671,2]
[425943414,1782041457000,-500.0,0.00027671,2]
[425943416,1782041457000,-500.0,0.00027671,2]
[425943422,1782041457000,-500.0,0.00027671,2]
[425943415,1782041457000,-500.0,0.00027671,2]
[425943413,1782041457000,-500.0,0.00027671,2]
[425943411,1782041457000,-500.0,0.00027671,2]
[425943417,1782041457000,-500.0,0.00027671,2]
[425943418,1782041457000,-500.0,0.00027671,2]
[425943412,1782041457000,-945.92,0.00027671,2]
[425943419,1782041457000,-500.0,0.00027671,2]
[425943433,1782041457000,-1247.04,0.00027671,2]
[425943430,1782041457000,-500.0,0.00027671,2]
[425943427,1782041457000,-500.0,0.00027671,2]
[425943434,1782041457000,-493.53555432,0.00027671,2]
[425943424,1782041457000,-500.0,0.00027671,2]
[425943426,1782041457000,-500.0,0.00027671,2]
[425943432,1782041457000,-4138.94,0.00027671,2]
[425943431,1782041457000,-500.0,0.00027671,2]
[425943428,1782041457000,-500.0,0.00027671,2]
[425943425,1782041457000,-500.0,0.00027671,2]
[425943429,1782041457000,-500.0,0.00027671,2]
[425943436,1782041457000,-1121.32,0.00027671,2]
[425943435,1782041457000,-530.00927069,0.00027671,2]
[425943440,1782041457000,-500.0,0.00027671,2]
[425943439,1782041457000,-500.0,0.00027671,2]
[425943376,1782041457000,-500.0,0.00027671,2]
[425943421,1782041457000,-500.0,0.00027671,2]
[425943423,1782041457000,-500.0,0.00027671,2]
[425943437,1782041457000,-500.0,0.00027671,2]
[425943404,1782041457000,-833.58,0.00027671,2]
[425943379,1782041457000,-500.0,0.00027671,2]
[425943383,1782041457000,-500.0,0.00027671,2]
[425943382,1782041457000,-500.0,0.00027671,2]
[425943385,1782041457000,-500.0,0.00027671,2]
[425943387,1782041457000,-717.28,0.00027671,2]
[425943397,1782041457000,-500.0,0.00027671,2]
[425943395,1782041457000,-500.0,0.00027671,2]
[425943420,1782041457000,-4418.15,0.00027671,2]
[425943438,1782041457000,-624.18,0.00027671,2]
[425943388,1782041457000,-557.39,0.00027671,2]
[425943389,1782041457000,-500.0,0.00027671,2]
[425943390,1782041457000,-523.34070267,0.00027671,2]
[425943391,1782041457000,-542.72,0.00027671,2]
[425943396,1782041457000,-822.52,0.00027671,2]
[425943394,1782041457000,-500.0,0.00027671,2]
[425943392,1782041457000,-500.0,0.00027671,2]
[425943398,1782041457000,-2603.66,0.00027671,2]
[425943405,1782041457000,-538.09515493,0.00027671,2]
[425943408,1782041457000,-500.0,0.00027671,2]
[425943401,1782041457000,-500.0,0.00027671,2]
[425943400,1782041457000,-500.0,0.00027671,2]
[425943402,1782041457000,-500.0,0.00027671,2]
[425943403,1782041457000,-500.0,0.00027671,2]
[425943399,1782041457000,-533.17,0.00027671,2]
[425943407,1782041457000,-526.04285834,0.00027671,2]
[425943406,1782041457000,-4358.65,0.00027671,2]
[425943393,1782041457000,-1432.58,0.00027671,2]
[425943409,1782041457000,-500.0,0.00027671,2]
[425943481,1782041458000,-5490.85,0.00027671,2]
[425943478,1782041458000,-500.0,0.00027671,2]
[425943476,1782041458000,-500.0,0.00027671,2]
[425943471,1782041458000,-500.0,0.00027671,2]
[425943477,1782041458000,-500.0,0.00027671,2]
[425943468,1782041458000,-3690.31,0.00027671,2]
[425943475,1782041458000,-500.0,0.00027671,2]
[425943473,1782041458000,-1816.77,0.00027671,2]
[425943472,1782041458000,-500.0,0.00027671,2]
[425943470,1782041458000,-500.0,0.00027671,2]
[425943474,1782041458000,-500.0,0.00027671,2]
[425943485,1782041458000,-500.0,0.00027671,2]
[425943496,1782041458000,-599.42,0.00027671,2]
[425943489,1782041458000,-500.0,0.00027671,2]
[425943483,1782041458000,-809.98,0.00027671,2]
[425943493,1782041458000,-500.0,0.00027671,2]
[425943486,1782041458000,-500.0,0.00027671,2]
[425943487,1782041458000,-500.0,0.00027671,2]
[425943492,1782041458000,-5276.66,0.00027671,2]
[425943490,1782041458000,-151.76766203,0.00027671,2]
[425943482,1782041458000,-1153.83,0.00027671,2]
[425943488,1782041458000,-500.0,0.00027671,2]
[425943494,1782041458000,-500.0,0.00027671,2]
[425943491,1782041458000,-6368.24,0.00027671,2]
[425943480,1782041458000,-500.0,0.00027671,2]
[425943484,1782041458000,-500.0,0.00027671,2]
[425943469,1782041458000,-500.0,0.00027671,2]
[425943456,1782041458000,-1285.55,0.00027671,2]
[425943465,1782041458000,-500.0,0.00027671,2]
[425943495,1782041458000,-500.0,0.00027671,2]
[425943442,1782041458000,-3754.21,0.00027671,2]
[425943444,1782041458000,-500.0,0.00027671,2]
[425943443,1782041458000,-4407.46,0.00027671,2]
[425943441,1782041458000,-657.86,0.00027671,2]
[425943446,1782041458000,-1570.62,0.00027671,2]
[425943445,1782041458000,-500.0,0.00027671,2]
[425943448,1782041458000,-614.69,0.00027671,2]
[425943447,1782041458000,-500.0,0.00027671,2]
[425943449,1782041458000,-500.0,0.00027671,2]
[425943452,1782041458000,-5144.26,0.00027671,2]
[425943450,1782041458000,-500.0,0.00027671,2]
[425943479,1782041458000,-500.0,0.00027671,2]
[425943451,1782041458000,-500.0,0.00027671,2]
[425943453,1782041458000,-500.0,0.00027671,2]
[425943455,1782041458000,-500.0,0.00027671,2]
[425943461,1782041458000,-526.28458613,0.00027671,2]
[425943463,1782041458000,-500.0,0.00027671,2]
[425943457,1782041458000,-791.03,0.00027671,2]
[425943462,1782041458000,-500.0,0.00027671,2]
[425943459,1782041458000,-500.0,0.00027671,2]
[425943466,1782041458000,-500.0,0.00027671,2]
[425943460,1782041458000,-500.0,0.00027671,2]
[425943464,1782041458000,-500.0,0.00027671,2]
[425943467,1782041458000,-500.0,0.00027671,2]
[425943458,1782041458000,-500.0,0.00027671,2]
[425943454,1782041458000,-500.0,0.00027671,2]
[425943498,1782041458000,-500.0,0.00027671,2]
[425943506,1782041458000,-500.0,0.00027671,2]
[425943497,1782041458000,-500.0,0.00027671,2]
[425943541,1782041458000,-4526.61,0.00027671,2]
[425943537,1782041458000,-500.0,0.00027671,2]
[425943536,1782041458000,-712.28,0.00027671,2]
[425943532,1782041458000,-500.0,0.00027671,2]
[425943539,1782041458000,-515.74,0.00027671,2]
[425943540,1782041458000,-1051.17,0.00027671,2]
[425943535,1782041458000,-1084.65,0.00027671,2]
[425943538,1782041458000,-500.0,0.00027671,2]
[425943533,1782041458000,-500.0,0.00027671,2]
[425943530,1782041458000,-3778.65,0.00027671,2]
[425943534,1782041458000,-5185.6,0.00027671,2]
[425943545,1782041458000,-500.0,0.00027671,2]
[425943531,1782041458000,-500.0,0.00027671,2]
[425943551,1782041458000,-500.0,0.00027671,2]
[425943543,1782041458000,-351.99887679,0.00027671,2]
[425943547,1782041458000,-500.0,0.00027671,2]
[425943542,1782041458000,-500.0,0.00027671,2]
[425943553,1782041458000,-500.0,0.00027671,2]
[425943548,1782041458000,-1000.0,0.00027671,2]
[425943499,1782041458000,-500.0,0.00027671,2]
[425943546,1782041458000,-500.0,0.00027671,2]
[425943549,1782041458000,-500.0,0.00027671,2]
[425943550,1782041458000,-500.0,0.00027671,2]
[425943556,1782041458000,-500.0,0.00027671,2]
[425943554,1782041458000,-500.0,0.00027671,2]
[425943555,1782041458000,-2937.45,0.00027671,2]
[425943544,1782041458000,-5071.67,0.00027671,2]
[425943525,1782041458000,-320.78749321,0.00027671,2]
[425943552,1782041458000,-500.0,0.00027671,2]
[425943524,1782041458000,-500.0,0.00027671,2]
[425943520,1782041458000,-10299.35,0.00027671,2]
[425943500,1782041458000,-500.0,0.00027671,2]
[425943503,1782041458000,-1401.64,0.00027671,2]
[425943502,1782041458000,-500.0,0.00027671,2]
[425943505,1782041458000,-544.29645383,0.00027671,2]
[425943504,1782041458000,-500.0,0.00027671,2]
[425943511,1782041458000,-513.21174292,0.00027671,2]
[425943510,1782041458000,-500.0,0.00027671,2]
[425943516,1782041458000,-500.0,0.00027671,2]
[425943512,1782041458000,-500.0,0.00027671,2]
[425943515,1782041458000,-500.0,0.00027671,2]
[425943509,1782041458000,-500.0,0.00027671,2]
[425943507,1782041458000,-500.0,0.00027671,2]
[425943501,1782041458000,-791.58,0.00027671,2]
[425943517,1782041458000,-5471.52,0.00027671,2]
[425943508,1782041458000,-500.0,0.00027671,2]
[425943523,1782041458000,-500.0,0.00027671,2]
[425943522,1782041458000,-517.22218434,0.00027671,2]
[425943527,1782041458000,-2310.69,0.00027671,2]
[425943518,1782041458000,-1496.3,0.00027671,2]
[425943521,1782041458000,-500.0,0.00027671,2]
[425943519,1782041458000,-500.0,0.00027671,2]
[425943529,1782041458000,-500.0,0.00027671,2]
[425943528,1782041458000,-500.0,0.00027671,2]
[425943513,1782041458000,-500.0,0.00027671,2]
[425943514,1782041458000,-500.0,0.00027671,2]
[425943526,1782041458000,-500.0,0.00027671,2]
[425943581,1782041459000,-3633.38,0.00027671,2]
[425943586,1782041459000,-8889.73,0.00027671,2]
[425943600,1782041459000,-7329.28,0.00027671,2]
[425943584,1782041459000,-512.52646206,0.00027671,2]
[425943579,1782041459000,-5086.11,0.00027671,2]
[425943583,1782041459000,-602.16,0.00027671,2]
[425943582,1782041459000,-500.0,0.00027671,2]
[425943585,1782041459000,-500.0,0.00027671,2]
[425943592,1782041459000,-500.0,0.00027671,2]
[425943589,1782041459000,-500.0,0.00027671,2]
[425943591,1782041459000,-1436.960783,0.00027671,7]
[425943588,1782041459000,-1436.960783,0.00027671,7]
[425943597,1782041459000,-500.0,0.00027671,2]
[425943593,1782041459000,-1436.960783,0.00027671,7]
[425943590,1782041459000,-500.0,0.00027671,2]
[425943595,1782041459000,-630.74,0.00027671,2]
[425943596,1782041459000,-1436.960783,0.00027671,7]
[425943594,1782041459000,-4920.34,0.00027671,2]
[425943580,1782041459000,-500.0,0.00027671,2]
[425943598,1782041459000,-500.0,0.00027671,2]
[425943578,1782041459000,-500.0,0.00027671,2]
[425943567,1782041459000,-500.0,0.00027671,2]
[425943576,1782041459000,-4927.15,0.00027671,2]
[425943560,1782041459000,-500.0,0.00027671,2]
[425943558,1782041459000,-5790.86,0.00027671,2]
[425943562,1782041459000,-500.0,0.00027671,2]
[425943561,1782041459000,-500.0,0.00027671,2]
[425943559,1782041459000,-500.0,0.00027671,2]
[425943557,1782041459000,-500.0,0.00027671,2]
[425943563,1782041459000,-500.0,0.00027671,2]
[425943564,1782041459000,-226.47610506,0.00027671,2]
[425943571,1782041459000,-500.0,0.00027671,2]
[425943569,1782041459000,-500.0,0.00027671,2]
[425943570,1782041459000,-500.0,0.00027671,2]
[425943568,1782041459000,-500.0,0.00027671,2]
[425943566,1782041459000,-500.0,0.00027671,2]
[425943565,1782041459000,-500.0,0.00027671,2]
[425943574,1782041459000,-500.0,0.00027671,2]
[425943575,1782041459000,-500.0,0.00027671,2]
[425943572,1782041459000,-500.0,0.00027671,2]
[425943573,1782041459000,-1540.59,0.00027671,2]
[425943577,1782041459000,-551.78,0.00027671,2]
[425943587,1782041459000,-500.0,0.00027671,2]
[425943599,1782041459000,-500.0,0.00027671,2]
[425943616,1782041459000,-830.82,0.00027671,2]
[425943602,1782041459000,-500.0,0.00027671,2]
[425943625,1782041459000,-747.22,0.00027671,2]
[425943628,1782041459000,-500.0,0.00027671,2]
[425943629,1782041459000,-3767.72,0.00027671,2]
[425943627,1782041459000,-500.0,0.00027671,2]
[425943631,1782041459000,-345.88,0.00027671,2]
[425943632,1782041459000,-500.0,0.00027671,2]
[425943633,1782041459000,-10187.27,0.00027671,2]
[425943634,1782041459000,-500.0,0.00027671,2]
[425943635,1782041459000,-500.0,0.00027671,2]
[425943636,1782041459000,-500.0,0.00027671,2]
[425943638,1782041459000,-7097.95,0.00027671,2]
[425943639,1782041459000,-6306.04,0.00027671,2]
[425943637,1782041459000,-378.40534981,0.00027671,2]
[425943640,1782041459000,-500.0,0.00027671,2]
[425943645,1782041459000,-5383.81,0.00027671,2]
[425943642,1782041459000,-9769.93,0.00027671,2]
[425943644,1782041459000,-907.49,0.00027671,2]
[425943643,1782041459000,-635.22,0.00027671,2]
[425943601,1782041459000,-1675.81,0.00027671,2]
[425943622,1782041459000,-165.47200439,0.00027671,2]
[425943624,1782041459000,-542.78082286,0.00027671,2]
[425943641,1782041459000,-500.0,0.00027671,2]
[425943630,1782041459000,-500.0,0.00027671,2]
[425943623,1782041459000,-500.0,0.00027671,2]
[425943607,1782041459000,-562.70274818,0.00027671,2]
[425943608,1782041459000,-8710.73,0.00027671,2]
[425943605,1782041459000,-6055.84,0.00027671,2]
[425943603,1782041459000,-9406.56,0.00027671,2]
[425943606,1782041459000,-500.0,0.00027671,2]
[425943609,1782041459000,-204.04145397,0.00027671,2]
[425943610,1782041459000,-5372.41,0.00027671,2]
[425943611,1782041459000,-500.0,0.00027671,2]
[425943604,1782041459000,-802.4,0.00027671,2]
[425943617,1782041459000,-1355.35,0.00027671,2]
[425943612,1782041459000,-6718.25,0.00027671,2]
[425943614,1782041459000,-500.0,0.00027671,2]
[425943618,1782041459000,-500.0,0.00027671,2]
[425943619,1782041459000,-500.0,0.00027671,2]
[425943615,1782041459000,-500.0,0.00027671,2]
[425943620,1782041459000,-569.43,0.00027671,2]
[425943621,1782041459000,-762.22,0.00027671,2]
[425943613,1782041459000,-500.0,0.00027671,2]
[425943626,1782041459000,-9459.19,0.00027671,2]
[425943681,1782041460000,-623.68,0.00027671,2]
[425943682,1782041460000,-500.0,0.00027671,2]
[425943680,1782041460000,-500.0,0.00027671,2]
[425943679,1782041460000,-8419.53,0.00027671,2]
[425943683,1782041460000,-11148.58,0.00027671,2]
[425943669,1782041460000,-500.0,0.00027671,2]
[425943687,1782041460000,-500.0,0.00027671,2]
[425943678,1782041460000,-500.0,0.00027671,2]
[425943684,1782041460000,-500.0,0.00027671,2]
[425943672,1782041460000,-1112.63,0.00027671,2]
[425943686,1782041460000,-8823.24,0.00027671,2]
[425943685,1782041460000,-13098.52,0.00027671,2]
[425943689,1782041460000,-500.0,0.00027671,2]
[425943688,1782041460000,-513.46,0.00027671,2]
[425943691,1782041460000,-500.0,0.00027671,2]
[425943693,1782041460000,-604.06,0.00027671,2]
[425943692,1782041460000,-300.0,0.00027671,2]
[425943694,1782041460000,-500.0,0.00027671,2]
[425943695,1782041460000,-500.0,0.00027671,2]
[425943690,1782041460000,-500.0,0.00027671,2]
[425943698,1782041460000,-500.0,0.00027671,2]
[425943697,1782041460000,-4309.61,0.00027671,2]
[425943699,1782041460000,-500.0,0.00027671,2]
[425943701,1782041460000,-9170.86,0.00027671,2]
[425943674,1782041460000,-500.0,0.00027671,2]
[425943677,1782041460000,-544.0540002,0.00027671,2]
[425943668,1782041460000,-500.0,0.00027671,2]
[425943649,1782041460000,-500.0,0.00027671,2]
[425943676,1782041460000,-3494.12,0.00027671,2]
[425943646,1782041460000,-6658.95,0.00027671,2]
[425943647,1782041460000,-4117.41,0.00027671,2]
[425943648,1782041460000,-500.0,0.00027671,2]
[425943650,1782041460000,-500.0,0.00027671,2]
[425943653,1782041460000,-500.0,0.00027671,2]
[425943700,1782041460000,-644.07,0.00027671,2]
[425943652,1782041460000,-500.0,0.00027671,2]
[425943651,1782041460000,-4489.89,0.00027671,2]
[425943655,1782041460000,-500.0,0.00027671,2]
[425943654,1782041460000,-500.0,0.00027671,2]
[425943665,1782041460000,-500.0,0.00027671,2]
[425943656,1782041460000,-900.14,0.00027671,2]
[425943657,1782041460000,-500.0,0.00027671,2]
[425943658,1782041460000,-500.0,0.00027671,2]
[425943661,1782041460000,-500.0,0.00027671,2]
[425943663,1782041460000,-613.8540607,0.00027671,2]
[425943662,1782041460000,-500.0,0.00027671,2]
[425943660,1782041460000,-500.0,0.00027671,2]
[425943659,1782041460000,-500.0,0.00027671,2]
[425943664,1782041460000,-500.0,0.00027671,2]
[425943666,1782041460000,-5756.01,0.00027671,2]
[425943673,1782041460000,-673.53,0.00027671,2]
[425943670,1782041460000,-500.0,0.00027671,2]
[425943675,1782041460000,-500.0,0.00027671,2]
[425943671,1782041460000,-500.0,0.00027671,2]
[425943667,1782041460000,-500.0,0.00027671,2]
[425943703,1782041460000,-151.0,0.00027671,7]
[425943696,1782041460000,-500.0,0.00027671,2]
[425943709,1782041460000,-7268.59,0.00027671,2]
[425943736,1782041460000,-500.0,0.00027671,2]
[425943733,1782041460000,-500.0,0.00027671,2]
[425943744,1782041460000,-500.0,0.00027671,2]
[425943741,1782041460000,-4255.92,0.00027671,2]
[425943738,1782041460000,-500.0,0.00027671,2]
[425943734,1782041460000,-500.0,0.00027671,2]
[425943737,1782041460000,-500.0,0.00027671,2]
[425943743,1782041460000,-560.51,0.00027671,2]
[425943735,1782041460000,-3570.15,0.00027671,2]
[425943739,1782041460000,-500.0,0.00027671,2]
[425943740,1782041460000,-500.0,0.00027671,2]
[425943747,1782041460000,-500.0,0.00027671,2]
[425943745,1782041460000,-500.0,0.00027671,2]
[425943748,1782041460000,-500.0,0.00027671,2]
[425943749,1782041460000,-500.0,0.00027671,2]
[425943753,1782041460000,-500.0,0.00027671,2]
[425943752,1782041460000,-500.0,0.00027671,2]
[425943751,1782041460000,-500.0,0.00027671,2]
[425943757,1782041460000,-7687.48,0.00027671,2]
[425943756,1782041460000,-500.0,0.00027671,2]
[425943755,1782041460000,-500.0,0.00027671,2]
[425943754,1782041460000,-500.0,0.00027671,2]
[425943759,1782041460000,-500.0,0.00027671,2]
[425943758,1782041460000,-500.0,0.00027671,2]
[425943702,1782041460000,-6837.07,0.00027671,2]
[425943760,1782041460000,-1317.73,0.00027671,2]
[425943750,1782041460000,-500.0,0.00027671,2]
[425943746,1782041460000,-6743.01,0.00027671,2]
[425943742,1782041460000,-500.0,0.00027671,2]
[425943730,1782041460000,-500.0,0.00027671,2]
[425943705,1782041460000,-544.76256334,0.00027671,2]
[425943707,1782041460000,-528.51,0.00027671,2]
[425943729,1782041460000,-500.0,0.00027671,2]
[425943706,1782041460000,-500.0,0.00027671,2]
[425943704,1782041460000,-500.0,0.00027671,2]
[425943708,1782041460000,-151.0,0.00027671,7]
[425943711,1782041460000,-500.0,0.00027671,2]
[425943710,1782041460000,-500.0,0.00027671,2]
[425943720,1782041460000,-9051.47,0.00027671,2]
[425943713,1782041460000,-500.0,0.00027671,2]
[425943718,1782041460000,-500.0,0.00027671,2]
[425943716,1782041460000,-4706.4,0.00027671,2]
[425943712,1782041460000,-500.0,0.00027671,2]
[425943714,1782041460000,-151.0,0.00027671,7]
[425943719,1782041460000,-567.55021714,0.00027671,2]
[425943728,1782041460000,-500.0,0.00027671,2]
[425943723,1782041460000,-500.0,0.00027671,2]
[425943715,1782041460000,-560.48,0.00027671,2]
[425943725,1782041460000,-1177.81,0.00027671,2]
[425943731,1782041460000,-500.0,0.00027671,2]
[425943724,1782041460000,-500.0,0.00027671,2]
[425943727,1782041460000,-500.0,0.00027671,2]
[425943726,1782041460000,-500.0,0.00027671,2]
[425943722,1782041460000,-629.21,0.00027671,2]
[425943732,1782041460000,-6082.93,0.00027671,2]
[425943721,1782041460000,-7027.59,0.00027671,2]
[425943717,1782041460000,-500.0,0.00027671,2]
[425943799,1782041461000,-640.9197083,0.00027671,2]
[425943795,1782041461000,-670.9,0.00027671,2]
[425943796,1782041461000,-996.79,0.00027671,2]
[425943804,1782041461000,-500.0,0.00027671,2]
[425943794,1782041461000,-2639.33,0.00027671,2]
[425943786,1782041461000,-500.0,0.00027671,2]
[425943788,1782041461000,-500.0,0.00027671,2]
[425943798,1782041461000,-500.0,0.00027671,2]
[425943797,1782041461000,-500.0,0.00027671,2]
[425943800,1782041461000,-500.0,0.00027671,2]
[425943803,1782041461000,-4283.71,0.00027671,2]
[425943801,1782041461000,-500.0,0.00027671,2]
[425943802,1782041461000,-500.0,0.00027671,2]
[425943812,1782041461000,-2259.71,0.00027671,2]
[425943808,1782041461000,-1956.1,0.00027671,2]
[425943815,1782041461000,-500.0,0.00027671,2]
[425943805,1782041461000,-500.0,0.00027671,2]
[425943813,1782041461000,-500.0,0.00027671,2]
[425943806,1782041461000,-500.0,0.00027671,2]
[425943807,1782041461000,-500.0,0.00027671,2]
[425943816,1782041461000,-500.0,0.00027671,2]
[425943809,1782041461000,-500.0,0.00027671,2]
[425943814,1782041461000,-729.73,0.00027671,2]
[425943810,1782041461000,-500.0,0.00027671,2]
[425943811,1782041461000,-500.0,0.00027671,2]
[425943789,1782041461000,-582.33319464,0.00027671,2]
[425943817,1782041461000,-169.5427946,0.00027671,2]
[425943783,1782041461000,-500.0,0.00027671,2]
[425943769,1782041461000,-577.03,0.00027671,2]
[425943792,1782041461000,-4282.25,0.00027671,2]
[425943818,1782041461000,-500.0,0.00027671,2]
[425943761,1782041461000,-15685.64,0.00027671,2]
[425943762,1782041461000,-551.8,0.00027671,2]
[425943763,1782041461000,-709.91,0.00027671,2]
[425943766,1782041461000,-500.0,0.00027671,2]
[425943765,1782041461000,-1036.7,0.00027671,2]
[425943768,1782041461000,-2865.46,0.00027671,2]
[425943764,1782041461000,-500.0,0.00027671,2]
[425943767,1782041461000,-5230.31,0.00027671,2]
[425943770,1782041461000,-500.0,0.00027671,2]
[425943772,1782041461000,-1267.73,0.00027671,2]
[425943776,1782041461000,-500.0,0.00027671,2]
[425943773,1782041461000,-500.0,0.00027671,2]
[425943775,1782041461000,-8765.19,0.00027671,2]
[425943779,1782041461000,-904.85,0.00027671,2]
[425943778,1782041461000,-500.0,0.00027671,2]
[425943780,1782041461000,-500.0,0.00027671,2]
[425943774,1782041461000,-500.0,0.00027671,2]
[425943771,1782041461000,-510.83834531,0.00027671,2]
[425943777,1782041461000,-1574.38,0.00027671,2]
[425943782,1782041461000,-6716.5,0.00027671,2]
[425943781,1782041461000,-500.0,0.00027671,2]
[425943793,1782041461000,-500.0,0.00027671,2]
[425943784,1782041461000,-500.0,0.00027671,2]
[425943791,1782041461000,-500.0,0.00027671,2]
[425943787,1782041461000,-1014.39,0.00027671,2]
[425943790,1782041461000,-525.46,0.00027671,2]
[425943785,1782041461000,-500.0,0.00027671,2]
[425943820,1782041461000,-909.56,0.00027671,2]
[425943830,1782041461000,-500.0,0.00027671,2]
[425943825,1782041461000,-500.0,0.00027671,2]
[425943845,1782041461000,-500.0,0.00027945,2]
[425943855,1782041461000,-500.0,0.00027945,2]
[425943849,1782041461000,-500.0,0.00027945,2]
[425943864,1782041461000,-500.0,0.00027945,2]
[425943866,1782041461000,-500.0,0.00027945,2]
[425943859,1782041461000,-500.0,0.00027945,2]
[425943857,1782041461000,-500.0,0.00027945,2]
[425943858,1782041461000,-500.0,0.00027945,2]
[425943860,1782041461000,-500.0,0.00027945,2]
[425943862,1782041461000,-500.0,0.00027945,2]
[425943863,1782041461000,-500.0,0.00027945,2]
[425943861,1782041461000,-608.74,0.00027945,2]
[425943848,1782041461000,-500.0,0.00027945,2]
[425943868,1782041461000,-558.94701244,0.00027945,2]
[425943867,1782041461000,-500.0,0.00027945,2]
[425943873,1782041461000,-500.0,0.00027945,2]
[425943870,1782041461000,-500.0,0.00027945,2]
[425943872,1782041461000,-611.76,0.00027945,2]
[425943869,1782041461000,-500.0,0.00027945,2]
[425943871,1782041461000,-500.0,0.00027945,2]
[425943876,1782041461000,-500.0,0.00027945,2]
[425943875,1782041461000,-504.32,0.00027945,2]
[425943874,1782041461000,-510.54,0.00027945,2]
[425943877,1782041461000,-500.0,0.00027945,2]
[425943879,1782041461000,-500.0,0.00027945,2]
[425943824,1782041461000,-500.0,0.00027671,2]
[425943878,1782041461000,-501.82455083,0.00027945,2]
[425943851,1782041461000,-500.0,0.00027945,2]
[425943865,1782041461000,-500.0,0.00027945,2]
[425943846,1782041461000,-500.0,0.00027945,2]
[425943819,1782041461000,-500.0,0.00027671,2]
[425943823,1782041461000,-573.05,0.00027671,2]
[425943826,1782041461000,-503.69,0.00027671,2]